bitfinex-derivatives/quotes_ETHF0:USTF0_20250504
["timestamp","ask_amount","ask_price","bid_price","bid_amount"]
[1746346593525,3.3154,1837.7,1837.6,1.90261]
[1746346593726,3.3154,1837.7,1837.6,5.11041]
[1746346593926,3.3154,1837.7,1837.6,1.90261]
[1746346594441,4.40355,1837.7,1837.6,0.8144]
[1746346594737,4.40355,1837.7,1837.6,4.0222]
[1746346596231,4.40355,1837.7,1837.6,3.2078]
[1746346596435,3.3154,1837.7,1837.6,4.29601]
[1746346596636,3.3154,1837.7,1837.6,5.96541]
[1746346597137,2.4537,1837.7,1837.6,5.96541]
[1746346598736,3.54185,1837.7,1837.6,5.96541]
[1746346598936,2.4537,1837.7,1837.6,5.96541]
[1746346604040,1.5863,1837.7,1837.6,5.96541]
[1746346606935,1.6732,1837.9,1837.6,4.8772]
[1746346607337,2.78852,1837.8,1837.7,1.08811]
[1746346607542,2.78852,1837.8,1837.6,4.29596]
[1746346607738,2.78855,1837.7,1837.6,4.29596]
[1746346607936,2.78855,1837.7,1837.6,1.08816]
[1746346608141,1.7004,1837.7,1837.6,1.08816]
[1746346608340,2.78855,1837.7,1837.4,9.1317]
[1746346608536,1.6862,1837.6,1837.5,1.08821]
[1746346608744,3.3769,1837.6,1837.5,1.08821]
[1746346608936,2.547,1837.6,1837.5,1.08821]
[1746346609148,2.547,1837.6,1837.5,6.41441]
[1746346610249,0.272,1837.7,1837.6,1.08821]
[1746346610541,0.272,1837.7,1837.6,12.71081]
[1746346610740,0.272,1837.7,1837.6,17.71081]
[1746346611049,0.272,1837.7,1837.6,3.2078]
[1746346611340,1.08821,1837.6,1837.5,3.688]
[1746346611647,4.31391,1837.6,1837.5,4.77627]
[1746346612140,4.31391,1837.6,1837.5,1.08827]
[1746346612552,4.62234189,1837.6,1837.5,1.08827]
[1746346613250,4.62234189,1837.6,1837.4,45.94709]
[1746346613448,1.5918,1837.5,1837.4,45.94709]
[1746346616642,1.5918,1837.5,1837.4,47.53529]
[1746346617150,1.5918,1837.5,1837.4,51.22329]
[1746346618746,1.6339,1837.6,1837.4,50.135]
[1746346619055,2.4088,1837.6,1837.5,2.76627]
[1746346620153,2.4088,1837.6,1837.5,6.45427]
[1746346622156,2.71778001,1837.6,1837.5,6.45427]
[1746346622355,2.71778001,1837.6,1837.5,4.77627]
[1746346622356,3.80599001,1837.6,1837.5,4.77627]
[1746346622556,3.80599001,1837.6,1837.5,3.688]
[1746346622755,3.8059694,1837.6,1837.5,3.688]
[1746346623255,3.8059694,1837.6,1837.4,3.2078]
[1746346623256,1.08827,1837.5,1837.4,3.2078]
[1746346623455,3.7782294,1837.5,1837.4,4.29613]
[1746346624655,3.7781347,1837.5,1837.4,4.29613]
[1746346625861,3.7781347,1837.5,1837.4,3.2078]
[1746346626459,3.77808177,1837.5,1837.4,3.2078]
[1746346626659,3.77807163,1837.5,1837.4,3.2078]
[1746346626860,3.77807163,1837.5,1837.4,4.29613]
[1746346627155,2.68980163,1837.5,1837.4,4.29613]
[1746346627753,1.5801,1837.5,1837.4,4.29613]
[1746346628057,1.5801,1837.5,1837.4,6.78033]
[1746346628256,1.5801,1837.5,1837.4,10.46833]
[1746346629254,1.1106,1837.6,1837.5,1.08827]
[1746346629556,2.7969,1837.6,1837.5,3.65397]
[1746346632159,2.7969,1837.6,1837.5,7.34197]
[1746346636953,0.272,1837.6,1837.5,7.34197]
[1746346638656,0.272,1837.6,1837.5,48.28487]
[1746346643959,0.272,1837.6,1837.5,45.71917]
[1746346643960,1.9394,1837.6,1837.5,45.71917]
[1746346644153,3.6064,1837.6,1837.5,42.03117]
[1746346644352,3.91528896,1837.6,1837.5,42.03117]
[1746346644759,3.91528808,1837.6,1837.5,42.03117]
[1746346644964,3.6064,1837.6,1837.5,42.03117]
[1746346645553,3.6064,1837.6,1837.5,43.60247]
[1746346646559,3.6064,1837.6,1837.5,42.03117]
[1746346647363,4.69461,1837.6,1837.5,42.03117]
[1746346647559,3.6064,1837.6,1837.5,42.03117]
[1746346647764,3.91530262,1837.6,1837.5,1.23117]
[1746346647965,3.91530372,1837.6,1837.5,1.23117]
[1746346648166,3.91530372,1837.6,1837.5,42.03117]
[1746346648965,5.00351372,1837.6,1837.5,42.03117]
[1746346649467,3.91530372,1837.6,1837.5,42.03117]
[1746346649669,3.91530516,1837.6,1837.5,42.03117]
[1746346651965,5.00351516,1837.6,1837.5,42.03117]
[1746346653569,5.00354242,1837.6,1837.5,42.03117]
[1746346655168,5.00359065,1837.6,1837.5,42.03117]
[1746346656274,5.00359065,1837.6,1837.5,44.1507]
[1746346658269,5.00359065,1837.6,1837.5,3.3507]
[1746346658767,5.00372229,1837.6,1837.5,3.3507]
[1746346660173,5.00372229,1837.6,1837.5,4.43897]
[1746346660174,0.272,1837.6,1837.5,4.43897]
[1746346660781,0.272,1837.6,1837.5,6.16857]
[1746346664275,0.272,1837.6,1837.5,9.85657]
[1746346664878,0.26723936,1837.6,1837.5,9.85657]
[1746346665178,1.5911,1837.7,1837.6,1.08821]
[1746346665374,1.90032097,1837.7,1837.6,3.46311]
[1746346666673,0.8472,1837.8,1837.7,1.08815]
[1746346666874,1.15643899,1837.8,1837.7,2.75945]
[1746346667071,1.15643899,1837.8,1837.7,3.62075]
[1746346667279,1.15643899,1837.8,1837.7,7.30875]
[1746346667775,0.30923899,1837.8,1837.7,7.30875]
[1746346668776,0.30923899,1837.8,1837.7,10.51655]
[1746346671481,1.645,1837.9,1837.8,1.08809]
[1746346671684,1.95417159,1837.9,1837.8,3.59289]
[1746346673178,1.95417159,1837.9,1837.8,7.28089]
[1746346673380,1.95414827,1837.9,1837.8,7.28089]
[1746346673781,3.89455956,1838.0,1837.9,1.08803]
[1746346674079,0.30915923,1838.0,1837.9,6.35203]
[1746346674279,13.88178718,1838.1,1838.0,1.08797]
[1746346674473,15.85987821,1838.1,1838.0,1.89927]
[1746346674981,12.65207821,1838.1,1838.0,1.89927]
[1746346675281,12.65208021,1838.1,1838.0,1.89927]
[1746346676282,13.73999021,1838.1,1838.0,1.89927]
[1746346676980,13.73987501,1838.1,1838.0,1.89927]
[1746346678277,4.70718783,1838.1,1838.0,1.89927]
[1746346678776,4.70711048,1838.1,1838.0,1.89927]
[1746346679385,3.61920048,1838.1,1838.0,1.89927]
[1746346680679,2.4587,1838.1,1838.0,1.89927]
[1746346680982,8.77265956,1838.3,1838.2,1.08785]
[1746346681183,11.62324526,1838.3,1838.2,1.08785]
[1746346681882,11.62324526,1838.3,1838.2,1.95255]
[1746346682383,11.62324526,1838.3,1838.2,0.8647]
[1746346682384,8.41544526,1838.3,1838.2,0.8647]
[1746346682578,1.08785,1838.2,1838.1,2.65277]
[1746346682780,2.81015,1838.2,1838.1,2.65277]
[1746346683080,1.7223,1838.2,1838.1,2.65277]
[1746346683484,2.81015,1838.2,1838.1,2.65277]
[1746346683684,4.47665956,1838.3,1838.1,4.2957]
[1746346683887,3.67245,1838.2,1838.1,3.2078]
[1746346684689,3.98122925,1838.2,1838.1,3.2078]
[1746346685385,3.98124013,1838.2,1838.1,3.2078]
[1746346687190,3.9812723,1838.2,1838.1,3.2078]
[1746346688890,3.98137558,1838.2,1838.1,3.2078]
[1746346690694,3.98150232,1838.2,1838.1,3.2078]
[1746346692493,3.98156026,1838.2,1838.0,1.08796]
[1746346692693,2.01371026,1838.1,1838.0,1.08796]
[1746346692892,2.01371026,1838.1,1838.0,4.29576]
[1746346693095,2.01371026,1838.1,1838.0,1.08796]
[1746346693295,2.01371026,1838.1,1838.0,4.29576]
[1746346693496,2.01371026,1838.1,1838.0,1.08796]
[1746346693890,3.10162026,1838.1,1838.0,4.29576]
[1746346694197,1.08797,1838.0,1837.9,41.88799]
[1746346694390,4.68598026,1838.0,1837.9,41.88799]
[1746346694591,1.08803,1837.9,1837.8,12.5998]
[1746346694791,1.9668834,1837.9,1837.8,13.68789]
[1746346695092,1.9668834,1837.9,1837.8,54.48789]
[1746346696194,1.96692091,1837.9,1837.8,55.28409]
[1746346696798,1.96692091,1837.9,1837.8,49.37209]
[1746346697901,1.96698677,1837.9,1837.8,49.37209]
[1746346699101,1.96698677,1837.9,1837.8,46.16429]
[1746346699701,1.96704077,1837.9,1837.8,49.37209]
[1746346699998,1.6577,1837.9,1837.8,49.37209]
[1746346700594,1.6577,1837.9,1837.8,51.09279]
[1746346701897,0.8408,1838.0,1837.9,1.08803]
[1746346702095,1.15023078,1838.0,1837.9,2.80873]
[1746346702410,1.6494,1838.1,1838.0,1.08797]
[1746346702704,1.95889087,1838.1,1838.0,3.54007]
[1746346703108,1.95889087,1838.1,1838.0,7.22807]
[1746346703295,1.95889714,1838.1,1838.0,7.22807]
[1746346706201,2.76559714,1838.1,1838.0,7.22807]
[1746346706900,2.76555996,1838.1,1838.0,7.22807]
[1746346708201,2.76555996,1838.1,1838.0,3.54007]
[1746346709301,1.95885996,1838.1,1838.0,7.22807]
[1746346711305,0.30945996,1838.1,1838.0,7.22807]
[1746346711801,0.272,1838.2,1838.1,1.08791]
[1746346712009,0.272,1838.2,1838.1,2.67851]
[1746346712305,0.272,1838.2,1838.1,6.15351]
[1746346714105,0.272,1838.2,1838.1,12.06551]
[1746346714305,9.07138956,1838.5,1838.4,1.08773]
[1746346714505,9.38078062,1838.5,1838.4,1.08773]
[1746346714706,9.38078062,1838.5,1838.4,3.50503]
[1746346714909,9.07138956,1838.5,1838.4,3.50503]
[1746346716113,9.07138956,1838.5,1838.4,7.19303]
[1746346717404,9.07138956,1838.5,1838.4,10.66703]
[1746346717612,0.2569,1838.7,1838.6,1.08762]
[1746346717813,3.62255956,1838.8,1838.7,1.08756]
[1746346718011,3.62255956,1838.8,1838.7,7.02166]
[1746346718211,3.62255956,1838.8,1838.7,10.70966]
[1746346719709,6.06525956,1838.8,1838.7,10.70966]
[1746346722016,2.4427,1838.8,1838.7,10.70966]
[1746346723119,3.5302,1838.8,1838.7,7.162]
[1746346724121,3.5302,1838.8,1838.7,3.474]
[1746346724920,2.4427,1838.8,1838.7,4.56156]
[1746346725513,2.4427,1838.8,1838.7,1.08756]
[1746346726122,1.6231,1838.8,1838.7,1.08756]
[1746346728223,1.6231,1838.8,1838.7,4.77556]
[1746346728825,1.6231,1838.8,1838.7,6.36656]
[1746346730126,1.6231,1838.8,1838.7,2.67856]
[1746346732427,1.6231,1838.8,1838.7,1.08756]
[1746346733828,2.7106,1838.8,1838.7,1.08756]
[1746346735124,1.6231,1838.8,1838.7,1.08756]
[1746346736726,2.71064,1838.8,1838.7,1.08756]
[1746346738131,1.6231,1838.8,1838.7,1.08756]
[1746346738830,1.6231,1838.8,1838.7,2.66466]
[1746346740634,0.8566,1838.9,1838.8,1.0875]
[1746346740832,2.7695,1838.9,1838.8,3.5834]
[1746346741630,1.0875,1838.8,1838.7,1.08751]
[1746346741927,2.7436,1838.8,1838.7,1.08751]
[1746346742332,1.08756,1838.7,1838.6,10.20737]
[1746346742537,3.49466,1838.7,1838.6,5.912]
[1746346742834,3.49466,1838.7,1838.6,6.99962]
[1746346743735,3.49466,1838.7,1838.6,1.08762]
[1746346752448,3.49466,1838.7,1838.6,1.94462]
[1746346753049,2.4071,1838.7,1838.6,1.94462]
[1746346753545,1.1134,1838.9,1838.8,1.0875]
[1746346753748,2.7261,1838.9,1838.8,1.0875]
[1746346754250,1.8695,1838.9,1838.8,4.7755]
[1746346755150,1.8695,1838.9,1838.8,1.0875]
[1746346755854,1.6127,1838.9,1838.8,1.0875]
[1746346758052,1.6127,1838.9,1838.8,2.6602]
[1746346758254,1.6127,1838.9,1838.8,6.3482]
[1746346759247,1.6127,1838.9,1838.8,2.6602]
[1746346759446,1.0882,1839.0,1838.9,1.08744]
[1746346759649,1.0882,1839.0,1838.9,3.44224]
[1746346760050,2.696,1839.0,1838.9,3.44224]
[1746346762357,3.78338,1839.0,1838.9,3.44224]
[1746346762859,2.696,1839.0,1838.9,3.44224]
[1746346763067,3.78338,1839.0,1838.9,3.44224]
[1746346763360,2.696,1839.0,1838.9,3.44224]
[1746346764953,2.696,1839.0,1838.9,4.26464]
[1746346768658,0.2568,1839.0,1838.9,4.26464]
[1746346769055,0.2568,1839.0,1838.9,7.95264]
[1746346769753,0.2568,1839.0,1838.9,48.75264]
[1746346773166,0.2568,1839.0,1838.9,54.66464]
[1746346786069,1.34418,1839.0,1838.9,10.68744]
[1746346786368,2.99058,1839.0,1838.9,5.912]
[1746346786565,7.99058,1839.0,1838.9,5.912]
[1746346786970,9.70828,1839.0,1838.9,5.912]
[1746346787175,13.39628,1839.0,1838.9,5.912]
[1746346790772,1.0875,1838.8,1838.7,8.34375319]
[1746346791475,1.0875,1838.8,1838.7,1.08755]
[1746346791871,1.0875,1838.8,1838.6,7.75138]
[1746346792079,3.2039,1838.7,1838.6,7.75138]
[1746346792373,3.4607,1838.7,1838.6,7.75138]
[1746346792864,4.54826,1838.7,1838.6,4.29538]
[1746346793374,4.54826,1838.7,1838.6,3.2078]
[1746346794980,4.54826,1838.7,1838.6,4.29542]
[1746346796277,4.54826,1838.7,1838.6,1.08762]
[1746346796577,4.54826,1838.7,1838.6,4.29542]
[1746346797576,4.54826,1838.7,1838.6,3.2078]
[1746346797879,3.4607,1838.7,1838.6,4.29542]
[1746346800472,2.6459,1838.7,1838.6,4.29542]
[1746346800673,2.6459,1838.7,1838.4,5.13702]
[1746346800887,1.08768,1838.5,1838.4,3.2078]
[1746346801377,2.76688,1838.5,1838.4,3.2078]
[1746346804184,1.6792,1838.5,1838.2,4.29562]
[1746346804384,3.49566,1838.4,1838.2,4.29562]
[1746346804683,2.401,1838.3,1838.2,4.29562]
[1746346805883,3.48879,1838.3,1838.2,4.29562]
[1746346806078,2.401,1838.3,1838.2,4.29562]
[1746346808983,3.48879,1838.3,1838.2,4.29562]
[1746346809290,2.401,1838.3,1838.2,4.29562]
[1746346809977,1.08764,1838.6,1838.2,3.2078]
[1746346810187,0.7941,1838.7,1838.6,1.08762]
[1746346810376,1.066,1838.7,1838.6,1.08762]
[1746346810776,3.87606,1838.7,1838.6,1.08762]
[1746346811582,2.7885,1838.7,1838.6,1.08762]
[1746346813386,0.2719,1838.7,1838.6,2.75842]
[1746346813588,0.2719,1838.7,1838.6,6.79042]
[1746346819082,0.2719,1838.7,1838.6,3.58262]
[1746346819285,0.2719,1838.7,1838.6,6.79042]
[1746346819985,1.6686324,1838.7,1838.6,3.2078]
[1746346820189,3.31752786,1838.7,1838.6,3.2078]
[1746346820486,1.08768,1838.5,1838.4,9.1198]
[1746346820685,1.08768,1838.5,1838.4,5.912]
[1746346820985,1.39681383,1838.5,1838.4,5.912]
[1746346821189,1.39680782,1838.5,1838.4,5.912]
[1746346821379,3.09420782,1838.5,1838.4,5.912]
[1746346821889,2.78508,1838.5,1838.4,5.912]
[1746346822075,3.09419137,1838.5,1838.4,5.912]
[1746346822381,6.47308,1838.5,1838.4,5.912]
[1746346822684,6.78218742,1838.5,1838.4,5.912]
[1746346822885,6.78219449,1838.5,1838.4,5.912]
[1746346823485,6.78219378,1838.5,1838.4,5.912]
[1746346824288,6.78216078,1838.5,1838.4,5.912]
[1746346824488,7.05406078,1838.5,1838.4,5.912]
[1746346824791,7.0540528,1838.5,1838.4,5.912]
[1746346824989,6.74498,1838.5,1838.4,5.912]
[1746346825192,7.05405547,1838.5,1838.4,5.912]
[1746346825489,7.0540911,1838.5,1838.4,5.912]
[1746346825684,7.05409135,1838.5,1838.4,5.912]
[1746346825888,7.05409166,1838.5,1838.3,1.08778]
[1746346826081,6.74498,1838.5,1838.3,2.72978]
[1746346826282,3.05698,1838.5,1838.3,2.72978]
[1746346826490,3.05698,1838.5,1838.4,0.8516]
[1746346827087,1.9693,1838.5,1838.4,3.58133]
[1746346827386,0.2719,1838.5,1838.4,3.58133]
[1746346828293,0.2719,1838.5,1838.4,7.26933]
[1746346828884,0.2719,1838.5,1838.4,10.47713]
[1746346829584,0.2719,1838.5,1838.4,11.29713]
[1746346836796,1.8405,1838.5,1838.4,11.29713]
[1746346838100,1.8405,1838.5,1838.4,11.29713]
[1746346840800,0.2719,1838.5,1838.4,11.29713]
[1746346843091,0.2719,1838.5,1838.4,7.60913]
[1746346844103,0.2719,1838.5,1838.4,11.29713]
[1746346849300,0.2719,1838.5,1838.4,17.20913]
[1746346852605,1.9291,1838.5,1838.4,17.20913]
[1746346862416,1.9291,1838.5,1838.4,14.74713]
[1746346862612,3.02157984,1838.5,1838.4,14.74713]
[1746346862817,3.02157984,1838.5,1838.4,13.89553]
[1746346863020,3.3318574,1838.5,1838.4,13.89553]
[1746346863217,3.33186582,1838.5,1838.4,13.89553]
[1746346863514,3.02157892,1838.5,1838.4,13.89553]
[1746346863716,3.33185738,1838.5,1838.4,13.89553]
[1746346864014,3.02157892,1838.5,1838.4,13.89553]
[1746346864211,3.33183889,1838.5,1838.4,13.89553]
[1746346864411,3.3318344,1838.5,1838.4,13.89553]
[1746346864614,3.33183346,1838.5,1838.4,13.89553]
[1746346864814,3.02157892,1838.5,1838.4,13.89553]
[1746346865019,3.33178804,1838.5,1838.4,13.89553]
[1746346865316,3.33178835,1838.5,1838.4,13.89553]
[1746346865506,3.33179806,1838.5,1838.4,13.89553]
[1746346865709,3.33182147,1838.5,1838.4,13.89553]
[1746346866013,3.02157892,1838.5,1838.4,13.89553]
[1746346866319,3.33184223,1838.5,1838.4,13.89553]
[1746346866613,3.02157892,1838.5,1838.4,13.89553]
[1746346866815,3.33184555,1838.5,1838.4,13.89553]
[1746346867013,3.02157892,1838.5,1838.4,13.89553]
[1746346867213,3.3318453,1838.5,1838.4,13.89553]
[1746346867513,3.33184531,1838.5,1838.4,13.89553]
[1746346867813,3.33184511,1838.5,1838.4,13.89553]
[1746346868015,3.02157892,1838.5,1838.4,13.89553]
[1746346868318,3.33183134,1838.5,1838.4,13.89553]
[1746346868508,3.33183375,1838.5,1838.4,13.89553]
[1746346868712,3.33180013,1838.5,1838.4,13.89553]
[1746346869014,3.33179366,1838.5,1838.4,13.89553]
[1746346869214,3.02157892,1838.5,1838.4,13.89553]
[1746346869418,3.33179334,1838.5,1838.4,13.89553]
[1746346869720,3.33179367,1838.5,1838.4,13.89553]
[1746346869920,3.33179463,1838.5,1838.4,13.89553]
[1746346870119,3.02157892,1838.5,1838.4,13.89553]
[1746346870519,3.64205255,1838.5,1838.4,13.89553]
[1746346871020,3.3318091,1838.5,1838.4,13.89553]
[1746346874519,3.3318091,1838.5,1838.4,12.8078]
[1746346874817,4.4194891,1838.5,1838.4,12.8078]
[1746346875322,4.4194891,1838.5,1838.4,9.1198]
[1746346876425,4.4194891,1838.5,1838.4,10.20753]
[1746346877121,4.4194891,1838.5,1838.4,9.1198]
[1746346878521,4.4194891,1838.5,1838.4,5.912]
[1746346878727,4.4194891,1838.5,1838.4,1.08773]
[1746346879815,4.4194891,1838.5,1838.3,6.6778]
[1746346880124,1.6403,1838.4,1838.3,7.76554]
[1746346881226,1.9122,1838.4,1838.3,7.76554]
[1746346884329,0.2719,1838.4,1838.3,9.34384]
[1746346884528,0.2719,1838.4,1838.3,16.10714]
[1746346885133,0.2719,1838.4,1838.3,19.79514]
[1746346887139,0.2719,1838.4,1838.3,16.58734]
[1746346887635,0.2719,1838.4,1838.3,19.79514]
[1746346891136,0.2719,1838.4,1838.3,30.67944478]
[1746346891626,0.6205091,1838.5,1838.4,1.08773]
[1746346891832,3.2271,1838.8,1838.7,1.08752]
[1746346892035,3.2271,1838.8,1838.7,4.29532]
[1746346893031,4.3146,1838.8,1838.7,4.29532]
[1746346896531,3.2271,1838.8,1838.7,4.29532]
[1746346898537,3.2271,1838.8,1838.7,1.08752]
[1746346898735,3.2271,1838.8,1838.7,4.29532]
[1746346901141,3.2271,1838.8,1838.7,1.08752]
[1746346901338,3.2271,1838.8,1838.7,4.29532]
[1746346904340,4.3146,1838.8,1838.7,4.29532]
[1746346906138,4.3146,1838.8,1838.7,3.2078]
[1746346906441,1.08756,1838.7,1838.6,1.0876]
[1746346906645,2.78546,1838.7,1838.6,1.0876]
[1746346906942,1.6979,1838.7,1838.6,1.0876]
[1746346907142,1.6979,1838.7,1838.6,2.704]
[1746346917947,1.6979,1838.7,1838.6,1.0876]
[1746346918146,2.78546,1838.7,1838.6,1.0876]
[1746346919541,1.6979,1838.7,1838.6,1.0876]
[1746346919938,1.6979,1838.7,1838.6,4.2954]
[1746346924539,1.6979,1838.7,1838.6,5.8759]
[1746346929051,1.6979,1838.7,1838.6,4.2954]
[1746346932360,1.6979,1838.7,1838.6,1.0876]
[1746346932563,1.6979,1838.7,1838.6,4.2954]
[1746346935556,1.6979,1838.7,1838.6,5.8787]
[1746346935763,0.9461,1838.8,1838.7,1.08756]
[1746346935964,0.9461,1838.8,1838.7,1.95086]
[1746346936163,0.1536,1838.8,1838.7,3.53416]
[1746346936364,0.1536,1838.8,1838.7,4.34976]
[1746346937164,0.1536,1838.8,1838.7,8.03776]
[1746346937864,2.01742674,1838.9,1838.8,1.0875]
[1746346938165,2.01742674,1838.9,1838.8,59.7381]
[1746346938556,2.01742674,1838.9,1838.8,64.7381]
[1746346938757,0.49035674,1838.9,1838.8,64.7381]
[1746346939065,6.74e-06,1838.9,1838.8,64.7381]
[1746346939663,3.84379436,1839.0,1838.9,1.08744]
[1746346939864,3.84379436,1839.0,1838.9,2.67924]
[1746346940165,3.84379436,1839.0,1838.9,6.36724]
[1746346940365,3.84379436,1839.0,1838.9,47.16724]
[1746346942070,2.4845,1839.3,1839.0,1.08738]
[1746346942270,2.4845,1839.3,1839.2,4.29506]
[1746346942974,2.4845,1839.3,1839.2,5.98896]
[1746346949275,10.42442601,1839.9,1839.2,5.98896]
[1746346949276,7.21662601,1839.9,1839.8,1.08691]
[1746346949470,7.21662601,1839.9,1839.7,1.08695]
[1746346949471,8.30351601,1839.9,1839.7,1.08695]
[1746346949676,1.6996,1839.8,1839.7,1.08695]
[1746346950074,6.6996,1839.8,1839.7,1.08695]
[1746346950379,7.78651,1839.8,1839.6,41.88699]
[1746346950581,3.2906,1839.7,1839.6,41.88699]
[1746346951972,3.2906,1839.7,1839.6,42.72699]
[1746346952173,3.2906,1839.7,1839.6,44.31129]
[1746346953678,2.4875,1839.7,1839.6,44.31129]
[1746346953982,0.8552,1840.0,1839.9,1.08685]
[1746346954181,3.3088,1840.0,1839.9,1.08685]
[1746346961187,6.9968,1840.0,1839.9,1.08685]
[1746346962188,3.3088,1840.0,1839.9,1.08685]
[1746346965990,1.08685,1839.9,1839.8,40.8]
[1746346966183,2.72835,1839.9,1839.7,3.2078]
[1746346966578,1.6415,1839.8,1839.7,4.29477]
[1746346966785,1.6415,1839.8,1839.7,45.09477]
[1746346971783,1.08697,1839.7,1839.6,5.912]
[1746346971985,1.08702,1839.6,1839.5,3.2078]
[1746346972293,7.88196833,1839.6,1839.2,47.79926]
[1746346972589,1.0872,1839.3,1839.2,40.8]
[1746346972889,1.08718,1839.4,1839.2,41.88723]
[1746346973084,2.5209,1839.3,1839.2,41.88723]
[1746346975889,3.6081,1839.3,1839.2,41.88723]
[1746346977487,2.5209,1839.3,1839.2,41.88723]
[1746346978990,3.6081,1839.3,1839.2,41.88723]
[1746346980093,2.5209,1839.3,1839.2,41.88723]
[1746346980489,3.6081,1839.3,1839.2,41.88723]
[1746346981796,1.08726,1839.2,1839.1,9.39699]
[1746346981993,2.72506,1839.2,1839.1,7.74309]
[1746346982198,2.72506,1839.2,1839.1,6.6558]
[1746346982496,1.6378,1839.2,1839.1,7.74312]
[1746346982998,2.72506,1839.2,1839.1,7.74312]
[1746346983199,1.6378,1839.2,1839.1,7.74312]
[1746346983800,2.72506,1839.2,1839.1,9.36052]
[1746346984197,1.6378,1839.2,1839.1,9.36052]
[1746346984698,2.72506,1839.2,1839.1,9.36052]
[1746346985099,1.6378,1839.2,1839.1,9.36052]
[1746346985798,2.72506,1839.2,1839.1,9.36052]
[1746346985998,1.6378,1839.2,1839.1,9.36052]
[1746346986387,2.72506,1839.2,1839.1,9.36052]
[1746346986588,1.6378,1839.2,1839.1,9.36052]
[1746346993905,1.6378,1839.2,1839.1,6.15272]
[1746346994108,1.6378,1839.2,1839.1,9.36052]
[1746346994307,2.72506,1839.2,1839.1,9.36052]
[1746346994496,1.6378,1839.2,1839.1,9.36052]
[1746346995711,2.72506,1839.2,1839.1,9.36052]
[1746346996009,1.6378,1839.2,1839.1,9.36052]
[1746346997905,1.6378,1839.2,1839.1,50.16052]
[1746346998405,2.72506,1839.2,1839.1,50.16052]
[1746346998599,1.6378,1839.2,1839.1,50.16052]
[1746347000206,2.72506,1839.2,1839.1,50.16052]
[1746347000608,1.6378,1839.2,1839.1,50.16052]
[1746347001313,2.72506,1839.2,1839.1,50.16052]
[1746347001510,3.01342261,1839.2,1839.1,50.16052]
[1746347002006,3.01342261,1839.2,1839.1,7.74312]
[1746347002209,3.01342889,1839.2,1839.1,7.74312]
[1746347003312,1.92616889,1839.2,1839.1,7.74312]
[1746347003512,1.6378,1839.2,1839.1,9.33972]
[1746347006019,2.72506,1839.2,1839.1,9.33972]
[1746347006318,1.6378,1839.2,1839.1,9.33972]
[1746347007818,2.72506,1839.2,1839.1,9.33972]
[1746347009220,3.57036,1839.2,1839.1,9.33972]
[1746347011017,2.4831,1839.2,1839.1,9.33972]
[1746347011417,1.08713,1839.5,1839.1,8.2524]
[1746347011617,3.3633,1839.5,1839.3,1.08715]
[1746347011817,1.37544596,1839.4,1839.3,1.08715]
[1746347012022,3.07444596,1839.4,1839.3,2.77845]
[1746347013222,3.07442776,1839.4,1839.3,1.6913]
[1746347013425,3.07441394,1839.4,1839.3,1.6913]
[1746347014819,2.78614,1839.4,1839.3,1.6913]
[1746347015024,3.07440214,1839.4,1839.3,1.6913]
[1746347015324,3.07440214,1839.4,1839.3,2.7785]
[1746347015526,2.78614,1839.4,1839.3,2.7785]
[1746347015716,1.08714,1839.4,1839.3,2.7785]
[1746347015913,1.718,1839.5,1839.4,1.08714]
[1746347016117,1.718,1839.5,1839.4,3.58194]
[1746347017213,1.08702,1839.6,1839.5,1.08704]
[1746347017415,2.72582,1839.6,1839.5,2.71934]
[1746347018428,1.6388,1839.6,1839.5,2.71934]
[1746347021029,1.6388,1839.6,1839.5,3.52074]
[1746347024027,2.72582,1839.6,1839.5,3.52074]
[1746347024220,2.72582,1839.6,1839.5,2.71934]
[1746347024221,1.6388,1839.6,1839.5,2.71934]
[1746347029032,2.72582,1839.6,1839.5,2.71934]
[1746347029835,1.6388,1839.6,1839.5,2.71934]
[1746347032338,0.8384,1839.7,1839.6,1.08702]
[1746347032536,0.8384,1839.7,1839.6,2.67832]
[1746347033338,3.62857,1839.7,1839.6,2.67832]
[1746347033530,4.46487,1839.7,1839.6,2.67832]
[1746347034328,4.46487,1839.7,1839.6,1.08702]
[1746347040638,1.08702,1839.6,1839.5,2.76984]
[1746347040936,2.77662,1839.6,1839.5,1.08704]
[1746347041440,1.6896,1839.6,1839.5,1.08704]
[1746347042539,1.6896,1839.6,1839.4,8.59432]
[1746347042742,0.8502,1839.5,1839.4,7.74192]
[1746347043839,1.93728,1839.5,1839.4,7.74192]
[1746347044142,1.93728,1839.5,1839.4,6.6548]
[1746347044529,2.22537591,1839.5,1839.4,3.2078]
[1746347046442,2.22540439,1839.5,1839.4,3.2078]
[1746347048240,1.0872,1839.3,1839.2,5.912]
[1746347048440,1.37523046,1839.3,1839.2,5.912]
[1746347048635,1.37523046,1839.3,1839.2,6.99926]
[1746347048834,3.75623046,1839.3,1839.2,1.08726]
[1746347049345,3.75623046,1839.3,1839.2,4.29506]
[1746347049641,2.66903046,1839.3,1839.2,4.29506]
[1746347050035,2.66890322,1839.3,1839.2,4.29506]
[1746347050239,3.75610322,1839.3,1839.2,4.29506]
[1746347050438,2.381,1839.3,1839.2,4.29506]
[1746347051144,2.381,1839.3,1839.2,5.11426]
[1746347051343,3.4682,1839.3,1839.2,5.11426]
[1746347051845,2.381,1839.3,1839.2,5.11426]
[1746347052140,3.75602093,1839.3,1839.2,3.2078]
[1746347052347,3.75602093,1839.3,1839.0,50.159]
[1746347052348,1.08732,1839.1,1839.0,7.74215]